bitfinex-derivatives/quotes_SOLF0:USTF0_20240820
["timestamp","ask_amount","ask_price","bid_price","bid_amount"]
[1724156134473,0.04897803,146.0,145.99,3.4233]
[1724156136769,14.00217803,146.0,145.98,0.05250444]
[1724156137868,0.04897803,146.0,145.98,3.47590444]
[1724156138068,10.57897803,146.0,145.98,0.05250444]
[1724156138469,14.00217803,146.0,145.98,0.05250444]
[1724156141472,13.9533,145.99,145.98,0.05250444]
[1724156141770,10.53,145.97,145.96,3.424]
[1724156141976,10.53,145.97,145.95,3.4242]
[1724156143078,10.57482374,145.97,145.95,3.47334494]
[1724156144879,0.04482374,145.97,145.95,3.47334494]
[1724156145482,0.04482374,145.97,145.96,3.424]
[1724156146175,0.04482374,145.97,145.95,3.47324494]
[1724156151776,0.04482374,145.97,145.95,0.04914494]
[1724156152877,0.04482374,145.97,145.95,3.47334494]
[1724156153682,0.04482374,145.97,145.95,0.04914494]
[1724156157484,0.04482374,145.97,145.95,3.47334494]
[1724156157689,0.04482374,145.97,145.95,0.04914494]
[1724156158779,0.04482374,145.97,145.95,3.47324494]
[1724156160283,0.04482374,145.97,145.95,0.04914494]
[1724156160693,10.53,145.96,145.95,0.04914494]
[1724156162087,13.954,145.96,145.95,0.04914494]
[1724156164290,13.954,145.96,145.91,3.38712597]
[1724156164291,3.4248,145.93,145.91,3.38712597]
[1724156164494,3.4248,145.93,145.9,3.4253]
[1724156164797,3.4248,145.93,145.91,3.44964417]
[1724156165388,3.425,145.92,145.91,0.04442228]
[1724156167897,3.47220565,145.93,145.91,0.04442228]
[1724156168293,0.04730565,145.93,145.91,0.04442228]
[1724156168797,0.04730565,145.93,145.91,3.46952228]
[1724156169492,0.04730565,145.93,145.91,0.04442228]
[1724156169692,3.47210565,145.93,145.91,0.04442228]
[1724156170894,13.955,145.92,145.88,4.61099383]
[1724156171882,13.955,145.92,145.88,1.2524]
[1724156172087,13.955,145.92,145.89,3.4257]
[1724156172287,13.955,145.92,145.89,3.47092081]
[1724156172697,13.955,145.92,145.89,0.04522081]
[1724156173098,3.425,145.92,145.89,0.04522081]
[1724156173305,13.955,145.92,145.89,0.04522081]
[1724156173997,3.47210565,145.93,145.9,3.4254]
[1724156174198,10.53,145.92,145.9,3.4254]
[1724156175101,10.53,145.92,145.89,3.47072081]
[1724156175299,13.955,145.92,145.89,3.47072081]
[1724156175597,10.53,145.92,145.89,3.47072081]
[1724156175803,13.955,145.92,145.89,0.04522081]
[1724156176707,10.53,145.92,145.89,3.47092081]
[1724156177201,10.53,145.92,145.89,0.04522081]
[1724156178000,10.57730565,145.93,145.89,0.04522081]
[1724156179499,10.57730565,145.93,145.9,3.4253]
[1724156179691,10.57730565,145.93,145.89,0.04522081]
[1724156179892,14.00220565,145.93,145.89,3.47072081]
[1724156180104,14.00220565,145.93,145.89,0.04522081]
[1724156180406,14.00220565,145.93,145.89,3.47082081]
[1724156181201,3.425,145.92,145.89,3.47082081]
[1724156181603,10.57730565,145.93,145.9,3.4254]
[1724156181805,10.57730565,145.93,145.89,0.04522081]
[1724156182202,10.57730565,145.93,145.9,3.4253]
[1724156182809,14.00200565,145.93,145.9,3.4253]
[1724156183109,10.57730565,145.93,145.89,0.04522081]
[1724156183409,14.00220565,145.93,145.89,0.04522081]
[1724156183596,14.00220565,145.93,145.89,3.47072081]
[1724156184005,10.53,145.91,145.89,3.47072081]
[1724156184609,10.53,145.91,145.89,0.04522081]
[1724156185513,10.53,145.92,145.89,3.47082081]
[1724156186507,10.53,145.92,145.9,3.4254]
[1724156186700,0.04730565,145.93,145.89,0.04522081]
[1724156186901,0.04730565,145.93,145.89,1.36682081]
[1724156187217,0.04730565,145.93,145.91,3.425]
[1724156187909,0.04730565,145.93,145.92,3.425]
[1724156188415,0.04730565,145.93,145.91,3.425]
[1724156188803,0.04730565,145.93,145.9,1.287]
[1724156189313,0.04730565,145.93,145.91,3.4252]
[1724156195411,0.04730565,145.93,145.92,3.425]
[1724156196020,85.6984164,145.98,145.91,10.53]
[1724156196225,85.6984164,145.98,145.91,11.783]
[1724156196809,89.1221164,145.98,145.94,3.4244]
[1724156197017,89.1221164,145.98,145.94,6.9151522]
[1724156197219,0.05089702,145.97,145.95,0.04375275]
[1724156198016,0.05089702,145.97,145.95,3.46785275]
[1724156199007,0.05089702,145.97,145.95,0.04375275]
[1724156199915,10.58089702,145.97,145.95,0.04375275]
[1724156201019,10.53,145.96,145.95,0.04375275]
[1724156201717,13.954,145.96,145.95,0.04375275]
[1724156202816,0.05089702,145.97,145.95,0.04375275]
[1724156203020,0.05089702,145.97,145.95,3.46785275]
[1724156203214,0.05089702,145.97,145.95,0.04375275]
[1724156207519,0.05089702,145.97,145.95,3.46785275]
[1724156209112,0.05089702,145.97,145.95,0.04375275]
[1724156209719,0.05089702,145.97,145.95,3.46795275]
[1724156209923,10.53,145.96,145.95,0.04375275]
[1724156210424,0.05089702,145.97,145.95,0.04375275]
[1724156210814,0.05089702,145.97,145.95,3.46785275]
[1724156213718,10.58089702,145.97,145.95,0.04375275]
[1724156214230,0.05089702,145.97,145.95,3.46785275]
[1724156214922,0.05089702,145.97,145.95,0.04375275]
[1724156215316,10.53,145.96,145.95,0.04375275]
[1724156216430,10.58089702,145.97,145.95,0.04375275]
[1724156218522,10.58089702,145.97,145.95,3.46785275]
[1724156218730,1.2664,146.05,145.95,0.04375275]
[1724156219033,10.53,146.01,145.95,0.04375275]
[1724156219226,10.53,146.01,145.95,1.35895275]
[1724156219530,3.4231,146.0,145.96,3.4239]
[1724156219921,0.05054338,145.99,145.96,3.4239]
[1724156220122,0.05054338,145.99,145.95,1.35895275]
[1724156220429,0.05054338,145.99,145.97,3.4237]
[1724156220625,0.05054338,145.99,145.95,1.35895275]
[1724156222228,10.53,145.98,145.95,0.04375275]
[1724156222429,10.53,145.97,145.95,0.04375275]
[1724156223035,10.53,145.98,145.95,0.04375275]
[1724156223726,13.9536,145.98,145.95,0.04375275]
[1724156224532,0.05054338,145.99,145.95,3.46795275]
[1724156224533,3.47394338,145.99,145.95,3.46795275]
[1724156226530,10.53,145.98,145.95,3.46795275]
[1724156227235,13.9537,145.98,145.95,0.04375275]
[1724156227935,0.05054338,145.99,145.95,3.46785275]
[1724156227936,3.47404338,145.99,145.95,3.46785275]
[1724156228234,14.00404338,145.99,145.95,3.46785275]
[1724156228737,3.4236,145.98,145.95,3.46785275]
[1724156230338,13.9536,145.98,145.95,3.46785275]
[1724156232335,13.9536,145.98,145.95,0.04375275]
[1724156232941,14.00394338,145.99,145.95,3.46785275]
[1724156234541,10.53,145.97,145.95,0.04375275]
[1724156235532,13.9538,145.97,145.95,0.04375275]
[1724156235733,10.53,145.96,145.95,0.04375275]
[1724156236135,13.954,145.96,145.95,0.04375275]
[1724156241048,3.4238,145.97,145.95,0.04375275]
[1724156241245,13.9538,145.97,145.95,0.04375275]
[1724156241747,3.424,145.96,145.95,0.04375275]
[1724156242846,13.954,145.96,145.95,0.04375275]
[1724156244053,3.4245,145.94,145.92,3.4249]
[1724156244350,13.9545,145.94,145.91,3.4251]
[1724156245345,14.005387,145.94,145.91,3.47360986]
[1724156246042,10.53,145.92,145.91,0.04850986]
[1724156247053,13.955,145.92,145.91,0.04850986]
[1724156248255,10.53,145.92,145.91,0.04850986]
[1724156249752,14.005487,145.94,145.91,3.47370986]
[1724156249942,14.005487,145.94,145.91,0.04850986]
[1724156249943,0.050887,145.94,145.91,0.04850986]
[1724156250752,0.050887,145.94,145.92,3.4248]
[1724156254467,0.050887,145.94,145.91,3.47360986]
[1724156254654,14.005487,145.94,145.91,0.04850986]
[1724156255058,10.580887,145.94,145.91,3.47360986]
[1724156256666,14.005387,145.94,145.91,0.04850986]
[1724156257465,14.005387,145.94,145.91,3.47370986]
[1724156257959,14.005387,145.94,145.91,0.04850986]
[1724156258363,10.580887,145.94,145.91,0.04850986]
[1724156258570,10.580887,145.94,145.91,3.47370986]
[1724156260970,0.050887,145.94,145.92,3.47853113]
[1724156261167,0.050887,145.94,145.91,0.04850986]
[1724156261374,0.050887,145.94,145.92,3.425]
[1724156261772,0.050887,145.94,145.92,6.78302695]
[1724156261975,0.050887,145.94,145.93,3.4247]
[1724156264083,0.050887,145.94,145.91,0.04850986]
[1724156266874,0.050887,145.94,145.92,3.4248]
[1724156271676,10.580887,145.94,145.92,3.4248]
[1724156273289,14.005387,145.94,145.91,3.47350986]
[1724156273480,10.580887,145.94,145.91,3.47350986]
[1724156278584,31.07,145.93,145.85,39.53629628]
[1724156278790,10.53,145.86,145.79,10.97510529]
[1724156278986,13.9565,145.86,145.8,1.1591099]
[1724156279177,10.53,145.86,145.8,1.1591099]
[1724156279380,10.53,145.86,145.78,16.55600582]
[1724156279583,0.04897076,145.84,145.82,0.05232405]
[1724156283293,10.53,145.89,145.82,11.74140816]
[1724156283493,10.53,145.89,145.83,1.15908411]
[1724156283791,10.53,145.89,145.84,3.4267]
[1724156284000,10.53,145.89,145.84,6.1231]
[1724156284200,10.53,145.89,145.85,3.4264]
[1724156284396,0.04909273,145.88,145.85,3.47050487]
[1724156285993,10.53,145.92,145.85,10.57410487]
[1724156286192,10.53,145.92,145.85,10.53]
[1724156286398,10.53,145.92,145.86,1.15884918]
[1724156286798,13.9551,145.92,145.87,3.4259]
[1724156286992,0.04882631,145.91,145.88,3.42416846]
[1724156289894,20.54,146.01,145.88,13.95416846]
[1724156290101,10.53,145.94,145.88,13.90515707]
[1724156290997,0.0479911,145.92,145.9,3.4253]
[1724156291192,0.0479911,145.92,145.9,3.47622163]
[1724156292002,0.0479911,145.92,145.9,0.05092163]
[1724156292693,10.5779911,145.92,145.9,0.05092163]
[1724156293899,14.0030911,145.92,145.9,0.05092163]
[1724156294397,0.0479911,145.92,145.9,0.05092163]
[1724156297100,3.4729911,145.92,145.9,0.05092163]
[1724156297306,0.0479911,145.92,145.9,0.05092163]
[1724156301002,10.5779911,145.92,145.9,0.05092163]
[1724156301610,14.0030911,145.92,145.9,0.05092163]
[1724156301907,10.5779911,145.92,145.9,0.05092163]
[1724156302207,10.5779911,145.92,145.84,2.6964]
[1724156302412,10.53,145.88,145.84,9.5278095]
[1724156302907,10.53,145.88,145.84,2.6964]
[1724156303203,10.53,145.88,145.85,0.04552914]
[1724156303408,0.05114172,145.87,145.85,0.04552914]
[1724156304409,10.58114172,145.87,145.85,0.04552914]
[1724156307214,13.9564,145.86,145.85,0.04552914]
[1724156307514,10.53,145.86,145.8,1.15915299]
[1724156307701,13.9569,145.84,145.8,3.39628606]
[1724156307904,13.9569,145.84,145.79,6.07136706]
[1724156308110,13.9569,145.84,145.79,2.6148]
[1724156308314,13.9569,145.84,145.79,6.0427]
[1724156308609,0.04833191,145.83,145.8,0.04999521]
[1724156311418,0.04833191,145.83,145.8,3.47769521]
[1724156311612,0.04833191,145.83,145.8,0.04999521]
[1724156311912,0.04833191,145.83,145.81,3.4274]
[1724156312613,0.04833191,145.83,145.8,3.47769521]
[1724156314020,0.04833191,145.83,145.8,0.04999521]
[1724156315226,14.00553191,145.83,145.8,0.04999521]
[1724156316027,0.04833191,145.83,145.8,0.04999521]
[1724156316820,0.04833191,145.83,145.8,3.47759521]
[1724156317529,0.04833191,145.83,145.81,3.4275]
[1724156317826,0.04833191,145.83,145.8,0.04999521]
[1724156318028,0.04833191,145.83,145.81,3.4274]
[1724156321137,10.53,145.87,145.8,10.57999521]
[1724156321313,10.53,145.87,145.81,14.2672401]
[1724156321517,10.53,145.87,145.81,13.1081]
[1724156322129,10.53,145.85,145.81,2.5781]
[1724156322717,10.57399443,145.85,145.83,0.04617333]
[1724156325530,10.53,145.84,145.83,0.04617333]
[1724156326831,10.57399443,145.85,145.83,0.04617333]
[1724156328625,10.53,145.84,145.83,0.04617333]
[1724156329224,13.9568,145.84,145.83,0.04617333]
[1724156330934,3.47079443,145.85,145.83,0.04617333]
[1724156331236,10.53,145.84,145.83,0.04617333]
[1724156332632,0.04399443,145.85,145.83,3.47327333]
[1724156333632,0.04399443,145.85,145.84,3.4268]
[1724156334540,0.04399443,145.85,145.83,3.47317333]
[1724156334735,0.04399443,145.85,145.83,0.04617333]
[1724156334939,10.53,145.84,145.83,0.04617333]
[1724156336343,10.53,145.84,145.83,3.47327333]
[1724156338341,10.53,145.84,145.83,0.04617333]
[1724156345843,13.9568,145.84,145.83,0.04617333]
[1724156346047,10.53,145.84,145.77,3.4283]
[1724156346230,10.53,145.81,145.77,3.4283]
[1724156346437,10.53,145.81,145.76,3.4354601]
[1724156346633,10.53,145.81,145.75,10.53]
[1724156346829,10.53,145.81,145.76,1.15968388]
[1724156347043,10.53,145.81,145.77,0.04830019]
[1724156347044,0.04897267,145.8,145.77,0.04830019]
[1724156347743,0.04897267,145.8,145.78,3.4281]
[1724156350142,0.04897267,145.8,145.77,3.47670019]
[1724156350440,0.04897267,145.8,145.77,0.04830019]
[1724156350835,3.47687267,145.8,145.77,0.04830019]
[1724156351542,14.00687267,145.8,145.77,0.04830019]
[1724156353150,0.04897267,145.8,145.77,3.47680019]
[1724156353750,0.04897267,145.8,145.77,0.04830019]
[1724156354642,0.04897267,145.8,145.78,3.4282]
[1724156355042,0.04897267,145.8,145.77,0.04830019]
[1724156355750,0.04897267,145.8,145.79,3.428]
[1724156359848,69.77781999,145.9,145.78,10.53]
[1724156360050,10.53,145.84,145.79,2.576]
[1724156360359,10.53,145.84,145.81,3.4275]
[1724156360849,10.58206087,145.84,145.82,3.4272]
[1724156361056,10.58206087,145.84,145.81,0.04584323]
[1724156361443,10.58206087,145.84,145.82,3.4273]
[1724156362055,10.53,145.83,145.81,0.04584323]
[1724156368460,10.53,145.83,145.81,3.47314323]
[1724156369651,10.53,145.83,145.81,0.04584323]
[1724156370353,0.05206087,145.84,145.81,3.47324323]
[1724156370552,10.58206087,145.84,145.81,3.47324323]
[1724156370963,10.58206087,145.84,145.82,3.4273]
[1724156371459,10.58206087,145.84,145.81,3.47324323]
[1724156372949,0.05206087,145.84,145.82,3.4273]
[1724156375461,0.05206087,145.84,145.83,3.4271]
[1724156379054,0.05206087,145.84,145.81,0.04584323]
[1724156382070,10.58206087,145.84,145.81,0.04584323]
[1724156384879,10.58206087,145.84,145.81,3.47334323]
[1724156385079,10.58206087,145.84,145.81,0.04584323]
[1724156385692,14.00896087,145.84,145.81,0.04584323]
[1724156386090,10.58206087,145.84,145.81,0.04584323]
[1724156386388,10.58206087,145.84,145.81,3.47324323]
[1724156390884,10.58206087,145.84,145.82,3.4272]
[1724156395993,10.58206087,145.84,145.81,3.47334323]
[1724156397002,10.53,145.82,145.81,0.04584323]
[1724156400604,0.05206087,145.84,145.81,3.47334323]
[1724156400804,10.53,145.83,145.81,3.47334323]
[1724156402803,10.53,145.83,145.81,0.04584323]
[1724156404807,0.05206087,145.84,145.81,0.04584323]
[1724156406408,0.05206087,145.84,145.81,3.47324323]
[1724156408109,10.53,145.83,145.81,0.04584323]
[1724156408904,13.9571,145.83,145.81,0.04584323]
[1724156409105,10.53,145.83,145.81,0.04584323]
[1724156410809,13.9572,145.83,145.81,0.04584323]
[1724156411207,10.53,145.82,145.81,0.04584323]
[1724156411608,13.9573,145.82,145.81,0.04584323]
[1724156411914,10.53,145.82,145.81,0.04584323]
[1724156412316,13.9573,145.82,145.81,0.04584323]
[1724156430925,3.4272,145.83,145.81,0.04584323]
[1724156431126,10.53,145.82,145.81,0.04584323]
[1724156431527,13.9573,145.82,145.81,0.04584323]
[1724156433740,10.58206087,145.84,145.81,0.04584323]
[1724156434240,14.00906087,145.84,145.81,3.47324323]
[1724156434437,0.05206087,145.84,145.81,0.04584323]
[1724156434637,6.8496,145.93,145.81,0.04584323]
[1724156434638,0.0978,145.94,145.81,10.57584323]
[1724156434841,0.0978,145.94,145.83,10.53]
[1724156434842,10.53,145.88,145.83,10.53]
[1724156435145,10.53,145.88,145.83,13.89409777]
[1724156435732,10.53,145.88,145.85,3.4264]
[1724156435733,0.0412597,145.87,145.85,3.4264]
[1724156437542,0.0412597,145.87,145.86,3.4264]
[1724156440340,20.57,145.96,145.89,3.4256]
[1724156440546,10.53,145.91,145.84,14.55007647]
[1724156440933,10.53,145.92,145.86,10.53]
[1724156441338,13.9545,145.94,145.9,3.4252]
[1724156441539,10.53,145.94,145.87,10.53]
[1724156441938,10.53,145.94,145.9,3.4252]
[1724156442139,10.53,145.94,145.88,0.0490146]
[1724156443738,10.53,145.94,145.9,3.4253]
[1724156443939,10.53,145.94,145.89,3.9312]
[1724156444540,10.53,145.94,145.91,3.4251]
[1724156444742,10.53,145.94,145.91,3.46960165]
[1724156446740,10.53,145.94,145.92,3.4249]
[1724156447546,10.53,145.95,145.92,3.4249]
[1724156449749,10.53,145.95,145.93,3.4247]
[1724156450649,10.53,145.97,145.94,3.4245]
[1724156450850,10.53,145.97,145.94,3.4695572]
[1724156454756,10.53,145.97,145.94,0.0450572]
[1724156457458,13.9536,145.98,145.94,3.4695572]
[1724156458851,10.53,145.98,145.95,3.4242]
[1724156459049,10.53,146.0,145.94,10.5750572]
[1724156459359,10.53,146.0,145.96,0.05008622]
[1724156459557,24.0354722,146.05,145.96,0.05008622]
[1724156459759,3.4654722,146.05,145.99,0.04737255]
[1724156459966,10.53,146.01,145.99,0.04737255]
[1724156460156,13.953,146.01,145.99,0.04737255]
[1724156460469,10.53,146.01,145.99,0.04737255]
[1724156460852,10.53,146.02,145.99,0.04737255]
[1724156462452,10.53,146.03,145.99,0.04737255]
[1724156463268,3.4221,146.05,146.0,3.423]
[1724156463450,13.9521,146.05,146.0,3.423]
[1724156463762,13.9521,146.05,145.99,0.04737255]
[1724156463763,13.9521,146.05,146.01,3.4228]
[1724156464262,13.9521,146.05,146.0,3.423]
[1724156467469,10.53,146.03,145.99,0.04737255]
[1724156467865,13.9525,146.03,145.99,0.04737255]
[1724156468852,3.4226,146.02,145.99,0.04737255]
[1724156469257,3.423,146.01,145.99,0.04737255]
[1724156469562,10.53,146.01,145.99,0.04737255]
[1724156469761,3.4231,146.0,145.99,0.04737255]
[1724156470468,13.9531,146.0,145.99,0.04737255]
[1724156470763,10.53,146.0,145.92,10.53]
[1724156470966,10.53,145.97,145.92,3.4248]
[1724156471162,3.4241,145.96,145.92,3.4248]
[1724156471670,0.04737256,145.95,145.93,0.04418591]
[1724156474662,0.04737256,145.95,145.93,3.46888591]
[1724156475068,0.04737256,145.95,145.93,0.04418591]
[1724156476372,10.57737256,145.95,145.93,0.04418591]
[1724156477771,14.00177256,145.95,145.93,0.04418591]
[1724156479363,3.4245,145.94,145.93,0.04418591]
[1724156480364,3.425,145.92,145.87,10.53]
[1724156481077,3.425,145.92,145.88,3.4258]
[1724156481374,10.53,145.91,145.83,13.94741312]
[1724156481674,10.53,145.91,145.84,3.4267]
[1724156481875,3.4258,145.89,145.83,10.53]
[1724156482077,3.4258,145.89,145.86,0.04741533]
[1724156482373,0.04431051,145.87,145.86,0.04741533]
[1724156488684,14.00041051,145.87,145.86,0.04741533]
[1724156489777,10.57431051,145.87,145.86,0.04741533]
[1724156491775,0.04431051,145.87,145.86,0.04741533]
[1724156498888,0.04431051,145.87,145.86,3.47381533]
[1724156499487,0.04431051,145.87,145.86,0.04741533]
[1724156500089,0.04431051,145.87,145.86,3.47381533]
[1724156500687,0.04431051,145.87,145.86,0.04741533]
[1724156511700,0.04431051,145.87,145.86,3.47381533]
[1724156519297,10.53,145.9,145.86,0.04741533]
[1724156519496,10.53,145.9,145.84,10.53]
[1724156519712,10.53,145.9,145.85,1.3462]
[1724156520201,10.53,145.9,145.89,3.4257]
[1724156520802,0.04724796,145.91,145.89,3.4257]
[1724156521010,10.57724796,145.91,145.89,3.4257]
[1724156521407,10.57724796,145.91,145.88,3.47626155]
[1724156524111,0.04724796,145.91,145.89,3.4256]
[1724156524311,0.04724796,145.91,145.88,0.05046155]
[1724156524710,0.04724796,145.91,145.89,3.4254]
[1724156525105,0.04724796,145.91,145.88,0.05046155]
[1724156525314,0.04724796,145.91,145.9,3.4254]
[1724156527004,65.67464168,145.96,145.9,3.4254]
[1724156527005,76.20464168,145.96,145.92,3.4249]
[1724156527408,76.20464168,145.96,145.93,3.4247]
[1724156527409,65.67464168,145.96,145.93,3.4247]
[1724156527907,65.67464168,145.96,145.93,3.47377604]
[1724156534221,65.67464168,145.96,145.94,3.4245]
[1724156536910,65.67464168,145.96,145.93,3.47377604]
[1724156537108,76.20464168,145.96,145.93,0.04907604]
[1724156537412,13.9544,145.95,145.93,0.04907604]
[1724156538914,10.53,145.95,145.93,0.04907604]
[1724156539818,13.9544,145.95,145.93,0.04907604]
[1724156541417,13.9545,145.94,145.93,0.04907604]
[1724156541613,13.9545,145.94,145.93,0.00153515]
[1724156541819,10.53,145.94,145.85,1.257]
[1724156542015,10.53,145.91,145.85,11.787]
[1724156542216,10.53,145.91,145.88,3.4257]
[1724156542925,10.57907604,145.91,145.88,3.47351836]
[1724156543427,0.04907604,145.91,145.89,3.4256]
[1724156546125,0.04907604,145.91,145.88,3.47361836]
[1724156547424,0.04907604,145.91,145.88,0.04781836]
[1724156547822,0.04907604,145.91,145.89,3.4255]
[1724156551026,0.04907604,145.91,145.88,3.47361836]
[1724156555630,3.47437604,145.91,145.88,0.04781836]
[1724156555832,0.04907604,145.91,145.88,0.04781836]
[1724156556234,0.04907604,145.91,145.88,3.47361836]
[1724156556734,0.04907604,145.91,145.88,0.04781836]
[1724156557643,0.04907604,145.91,145.89,3.4256]
[1724156566845,0.04907604,145.91,145.88,3.47361836]
[1724156569843,0.04907604,145.91,145.89,3.4256]
[1724156574743,0.04907604,145.91,145.88,3.47361836]
[1724156576447,0.04907604,145.91,145.89,3.4256]
[1724156577445,0.04907604,145.91,145.88,10.57781836]
[1724156577649,10.53,145.95,145.89,1.2714]
[1724156577842,10.53,145.95,145.9,1.3543]
[1724156578039,10.53,145.95,145.91,6.92065264]
[1724156578040,3.4244,145.95,145.91,6.92065264]
[1724156578537,3.4241,145.96,145.91,6.92065264]
[1724156578737,3.4241,145.96,145.92,0.05080784]
[1724156580440,13.9543,145.95,145.92,0.05080784]
[1724156581341,3.37776734,145.99,145.92,0.05080784]
[1724156581342,13.9545,145.94,145.92,0.05080784]
[1724156581543,10.53,145.94,145.92,0.05080784]
[1724156582046,3.4247,145.93,145.92,0.05080784]
[1724156583351,13.9546,145.94,145.92,0.05080784]
[1724156584347,3.4247,145.93,145.92,0.05080784]
[1724156587854,13.9547,145.93,145.92,0.05080784]
[1724156588354,3.4247,145.93,145.92,0.05080784]
[1724156588549,10.53,145.93,145.92,0.05080784]
[1724156589753,13.9547,145.93,145.92,0.05080784]
[1724156598753,20.57,146.02,145.92,0.05080784]
[1724156598957,20.57,146.02,145.96,0.04501379]
[1724156598958,10.53,145.99,145.96,0.04501379]
[1724156599158,62.69,146.02,145.96,0.04501379]
[1724156599361,10.53,145.99,145.96,0.04501379]
[1724156599965,3.4238,145.97,145.96,0.04501379]
[1724156604160,3.46941379,145.95,145.9,2.6486]
[1724156604364,10.53,145.94,145.9,2.6486]
[1724156604567,13.9546,145.94,145.9,2.6486]
[1724156605063,13.9546,145.94,145.91,0.05060511]
[1724156605855,13.9546,145.94,145.91,3.47580511]
[1724156607971,10.53,145.94,145.91,3.47580511]
[1724156608172,10.53,145.94,145.91,0.05060511]
[1724156608670,10.53,145.94,145.91,3.47570511]
[1724156609460,10.53,145.94,145.91,0.05060511]
[1724156609970,3.46931379,145.95,145.91,0.05060511]
[1724156610272,13.99931379,145.95,145.91,0.05060511]
[1724156610673,13.99931379,145.95,145.91,3.47580511]
[1724156613768,3.4245,145.94,145.91,0.05060511]
[1724156614971,10.53,145.93,145.91,0.05060511]
[1724156615575,13.9548,145.93,145.91,0.05060511]
[1724156616877,0.04501379,145.95,145.91,0.05060511]
[1724156616878,13.955,145.92,145.91,0.05060511]
[1724156621680,0.04501379,145.95,145.91,0.05060511]
[1724156621882,10.57501379,145.95,145.91,0.05060511]
[1724156622273,3.4247,145.93,145.91,0.05060511]
[1724156622486,13.9547,145.93,145.91,0.05060511]
[1724156623279,3.425,145.92,145.91,0.05060511]
[1724156623985,13.955,145.92,145.91,0.05060511]
[1724156628890,10.53,145.92,145.86,6.0507]
[1724156629083,10.53,145.89,145.86,3.4263]
[1724156629484,13.9559,145.89,145.86,3.4263]
[1724156629689,10.53,145.89,145.85,3.4266]
[1724156629989,10.53,145.87,145.82,1.2951]
[1724156630180,10.53,145.86,145.82,1.2951]
[1724156630387,10.53,145.87,145.83,3.47505547]
[1724156630887,3.4265,145.86,145.84,3.4268]
[1724156631989,13.9562,145.87,145.84,3.4268]
[1724156632488,3.4262,145.87,145.84,3.4268]
[1724156636088,0.04885732,145.88,145.85,3.4265]
[1724156636281,0.04885732,145.88,145.84,3.43203458]
[1724156636483,0.04885732,145.88,145.85,2.6069]
[1724156636686,3.47475732,145.88,145.85,2.6069]
[1724156636987,0.04885732,145.88,145.85,2.6069]
[1724156637593,0.04885732,145.88,145.86,3.4262]
[1724156638295,0.04885732,145.88,145.85,6.0334]
[1724156642295,0.04885732,145.88,145.85,2.6069]
[1724156642794,3.47485732,145.88,145.85,2.6069]
[1724156643885,3.47485732,145.88,145.85,6.0334]
[1724156645899,0.04885732,145.88,145.85,6.0334]
[1724156646985,0.04885732,145.88,145.85,2.6069]
[1724156646986,14.00475732,145.88,145.85,2.6069]
[1724156648091,3.4262,145.87,145.85,2.6069]
[1724156648291,13.9562,145.87,145.85,2.6069]
[1724156650991,3.4262,145.87,145.85,2.6069]
[1724156651898,14.00485732,145.88,145.85,2.6069]
[1724156652293,14.00485732,145.88,145.85,6.0335]
[1724156652804,3.47485732,145.88,145.85,6.0335]
[1724156653496,3.47485732,145.88,145.85,2.6069]
[1724156654401,3.47485732,145.88,145.85,6.0334]
[1724156656801,3.47485732,145.88,145.83,3.50085197]
[1724156656802,10.53,145.86,145.83,0.04815547]
[1724156657907,3.4267,145.85,145.83,0.04815547]
[1724156661708,13.9568,145.84,145.83,0.04815547]
[1724156668505,3.4268,145.84,145.83,0.04815547]
[1724156672523,13.9568,145.84,145.83,0.04815547]
[1724156675320,3.4268,145.84,145.83,0.04815547]
[1724156692126,3.4272,145.83,145.8,3.4276]
[1724156692328,20.61458145,145.85,145.73,13.6191864]
[1724156692636,10.53,145.81,145.73,13.1572]
[1724156692844,10.53,145.81,145.73,16.6074411]
[1724156693235,0.04858499,145.78,145.76,0.05140088]
[1724156693737,0.04858499,145.78,145.77,3.4285]
[1724156695549,20.57,145.88,145.77,52.65]
[1724156695759,18.4892,145.88,145.87,10.53]
[1724156696044,0.15,145.97,145.8,42.12]
[1724156696239,339.9380973,146.06,145.9,10.53]